Cogmind - Beta 13 @@@ ROGUE MODE // 2024.05.08 @ 22:36:24 Player: BrainTooSmol Result: Destroyed by S-27 Virus with Autogun Performance ------------- Evolutions (4) 2000 Regions Visited (12) 2400 Robots Destroyed (121) 605 Value Destroyed (3008) 3008 Prototype IDs (20) 400 Alien Tech Used (0) 0 Bonus (408) 408 TOTAL SCORE: 8821 Bonus ------- High Alert Combat Kills 254 Follower Combat Kills 172 Met Data Miner 300 Friendly Fire -318 Cogmind --------- Core Integrity 0/850 Matter 290/300 Energy 84/100 System Corruption 0% Temperature Cool (0) Movement Core (100) Ox1 Location -6/Extension Parts ------- > --- POWER (1) -------- (None) > --- PROPULSION (3) --- (None) > --- UTILITY (9) ------ Enhanced Optical Array Improved Melee Analysis Suite Hardened Light Armor Plating > --- WEAPON (2) ------- (None) > --- INVENTORY (5) ---- Light Deuterium Engine Fission Core Power Amplifier Improved Reaction Control System Peak State ------------ > --- POWER ------------ Cooled Deuterium Engine > --- PROPULSION ------- Improved VTOL Module Cooled VTOL Module > --- UTILITY ---------- Weight Redist. System Advanced Weight Redist. System Visual Processing Unit Experimental Sensor Array Improved Melee Analysis Suite Improved Melee Analysis Suite ECM Suite Hacking Suite > --- WEAPON ----------- Molecular Deconstructor > --- INVENTORY -------- Cooled Ion Engine Improved Flight Unit Improved Flight Unit Experimental Sensor Array System Shield [Rating: 62] Favorites ----------- Power Cooled Ion Engine Engine Cooled Ion Engine Power Core Light Nuclear Core Propulsion Improved Treads Treads Improved Treads Leg Aluminum Leg Wheel Armored Wheel Flight Unit Improved VTOL Module Utility Improved Melee Analysis Suite Device Structural Scanner Storage High-capacity Storage Unit Processor Improved Melee Analysis Suite Hackware Hacking Suite Protection Hardened Light Armor Plating Weapon Improved Assault Rifle Energy Gun Small Laser Energy Cannon Light EM Pulse Cannon Ballistic Gun Improved Assault Rifle Launcher Mini Grenade Launcher Special Weapon Molecular Deconstructor Slashing Weapon Katana Build | -11 -10 -10 -9 -9 -9 -7 -7 -7 -7 -6 -6 -6 ------- Run | Yrd Mat Min Mat Sto Rec Fac Low Low Dat Pro Fac Ext Slots Evolved 8 | . . . 2 . . 4 . . . . 2 . Power . | . . . . . . . . . . . . . Propulsion 1 | . . . . . . . . . . . 1 . Utility 7 | . . . 2 . . 4 . . . . 1 . Weapon . | . . . . . . . . . . . . . Parts Attached 117 | 1 18 3 28 22 1 24 1 . 1 6 9 3 Power 11 | . 2 1 2 2 . 1 . . . . 2 1 Engine 9 | . 1 1 2 2 . 1 . . . . 1 1 Core 2 | . 1 . . . . . . . . . 1 . Reactor . | . . . . . . . . . . . . . Propulsion 21 | . 3 2 7 2 . 4 . . . 1 2 . Treads 5 | . 2 1 1 1 . . . . . . . . Leg . | . . . . . . . . . . . . . Wheel 7 | . 1 1 4 1 . . . . . . . . Hover . | . . . . . . . . . . . . . Flight 9 | . . . 2 . . 4 . . . 1 2 . Utility 35 | 1 3 . 6 5 . 13 . . . 1 4 2 Device 21 | 1 2 . 4 2 . 8 . . . 1 2 1 Storage 2 | . 1 . 1 . . . . . . . . . Processor 5 | . . . . . . 4 . . . . 1 . Hackware 3 | . . . . 1 . 1 . . . . 1 . Protection 4 | . . . 1 2 . . . . . . . 1 Artifact . | . . . . . . . . . . . . . Weapon 50 | . 10 . 13 13 1 6 1 . 1 4 1 . Energy Gun 4 | . 3 . . 1 . . . . . . . . Energy Cannon 10 | . 2 . 7 1 . . . . . . . . Ballistic Gun 13 | . 4 . 1 7 1 . . . . . . . Ballistic Cannon . | . . . . . . . . . . . . . Launcher 7 | . . . . 2 . 2 . . 1 2 . . Special Weapon 1 | . . . . . . . . . . 1 . . Impact Weapon . | . . . . . . . . . . . . . Slashing Weapon 15 | . 1 . 5 2 . 4 1 . . 1 1 . Piercing Weapon . | . . . . . . . . . . . . . Special Melee Weapon . | . . . . . . . . . . . . . Unidentified Prototypes 8 | . . . 1 3 . 3 . . . 1 . . Parts Lost 39 | . 5 1 7 5 1 1 . . . 3 3 13 Power 7 | . 1 1 2 1 . . . . . . . 2 Propulsion 6 | . . . . 1 . . . . . 1 1 3 Utility 18 | . 1 . 3 3 . 1 . . . 1 2 7 Weapon 8 | . 3 . 2 . 1 . . . . 1 . 1 Highest Loss Streak 12 | . 3 1 2 2 1 1 . . . 3 3 12 To Critical Strikes . | . . . . . . . . . . . . . Average Slot Usage (%) 92 | . 97 98 91 92 100 86 99 100 94 97 87 80 Engine 7 | . 2 1 10 7 11 7 7 7 7 7 5 5 Core 2 | . 11 11 . . . . . . . . . . Treads 7 | . 11 14 10 11 11 . . . . . . . Wheel 7 | . 11 14 11 10 11 . . . . . . . Flight 5 | . . . . . . 14 15 15 15 15 16 18 Device 18 | . 12 14 21 17 11 27 30 30 30 29 25 17 Storage 8 | . 14 14 11 11 11 . . . . . . . Processor 6 | . . . . . . 15 23 23 23 23 20 19 Hackware 5 | . . . . 6 11 11 7 7 7 7 13 11 Protection 3 | . . . 3 6 11 . . . . . . . Energy Cannon 3 | . 7 . 11 . . . . . . . . . Ballistic Gun 10 | . 11 28 8 18 22 . . . . . . . Slashing Weapon 2 | . . . 2 2 . 6 6 7 7 7 5 5 Naked Turns . | . . . . . . . . . . . . . Heaviest Build 63 | 13 34 29 61 63 60 60 17 17 17 17 19 17 Greatest Support 25 | 20 20 10 12 12 12 19 19 19 19 19 25 25 Greatest Overweight (x) 6 | . 3 2 6 5 4 4 . . . . . . Average Overweight (x) 1 | . 1 2 3 3 4 . . . . . . . Largest Inventory Capacity 20 | 8 15 15 20 20 20 20 5 5 5 5 5 5 Average Capacity 13 | 8 10 15 16 20 20 5 5 5 5 5 5 5 Most Carried 19 | 7 15 15 15 19 18 17 5 5 5 5 2 5 Average Carried 11 | 6 9 14 14 17 16 5 4 4 5 4 1 4 Final Capacity 20 | 8 15 15 20 20 20 5 5 5 5 5 5 5 Final Carried 17 | 7 15 15 13 17 17 5 4 5 5 3 2 4 Class Distribution -------------------- 57% | Mutant 14% | Scavenger-Mutant 13% | Hacker-Sprinter 9% | Sprinter Dominant Class ---------------- Mutant | -10/Materials Mutant | -10/Mines Scavenger-Mutant | -9/Materials Mutant | -9/Storage Mutant | -9/Recycling Sprinter | -7/Factory Sprinter | -7/Lower Caves Sprinter | -7/Lower Caves Sprinter | -7/Data Miner Sprinter | -6/Proximity Caves Hacker-Mutant | -6/Factory Hacker-Sprinter | -6/Extension Resources | -11 -10 -10 -9 -9 -9 -7 -7 -7 -7 -6 -6 -6 ----------- Run | Yrd Mat Min Mat Sto Rec Fac Low Low Dat Pro Fac Ext Matter Collected 2627 | 258 315 143 587 678 83 255 . 40 . 31 78 159 Remotely . | . . . . . . . . . . . . . Salvage Created 3796 | 102 613 71 1247 1146 150 230 . . . . 78 159 Parts 300 | 7 46 4 92 102 12 25 . . . . 5 7 Haulers Intercepted 7 | . 1 . 4 . . 1 . . . . . 1 Recyclers Shooed 2 | . 1 . . 1 . . . . . . . . Parts Field Recycled . | . . . . . . . . . . . . . Retrieved Matter . | . . . . . . . . . . . . . Parts Self-Destructed . | . . . . . . . . . . . . . Prevented . | . . . . . . . . . . . . . Kills | -11 -10 -10 -9 -9 -9 -7 -7 -7 -7 -6 -6 -6 ------- Run | Yrd Mat Min Mat Sto Rec Fac Low Low Dat Pro Fac Ext Combat Hostiles Destroyed 82 | . 14 2 26 32 3 4 . . . . 1 . Melee 2 | . . . . . . 1 . . . . 1 . Guns 49 | . 11 2 13 20 3 . . . . . . . Cannons 13 | . 1 . 12 . . . . . . . . . AOE 18 | . 2 . 1 12 . 3 . . . . . . Classes Destroyed 13 | 2 6 . 2 1 1 1 . . . . . . Worker 4 | . 1 . 2 . . 1 . . . . . . Builder 8 | . . . 2 4 . 2 . . . . . . Tunneler 2 | 1 . . 1 . . . . . . . . . Hauler 7 | . 1 . 4 . . 1 . . . . . 1 Recycler 1 | 1 . . . . . . . . . . . . Operator 2 | . 1 . 1 . . . . . . . . . Watcher 13 | . 2 . 4 2 . 2 . . . . 1 2 Swarmer 27 | . 3 2 13 6 . 3 . . . . . . Grunt 31 | . 11 1 6 13 . . . . . . . . Duelist 2 | . . . . 2 . . . . . . . . Sentry 20 | . . . 7 11 2 . . . . . . . Hunter 1 | . . . . . . 1 . . . . . . Programmer 2 | . . . . . 1 . . . . . 1 . Thug 1 | . . . . 1 . . . . . . . . Best Kill Streak 12 | 2 4 2 6 12 1 6 . . . . 1 1 Combat Bots Only 9 | . 4 2 4 9 1 3 . . . . 1 . Max Kills in Single Turn 4 | 1 2 1 2 4 1 3 . . . . 1 1 Gunslinging 1 | . . . 1 . . . . . . . . . Exploded 3 | . 2 . 1 3 . 2 . . . . . . Melee 1 | . . . . . . 1 . . . . 1 . Uniques/NPCs Destroyed . | . . . . . . . . . . . . . Combat | -11 -10 -10 -9 -9 -9 -7 -7 -7 -7 -6 -6 -6 -------- Run | Yrd Mat Min Mat Sto Rec Fac Low Low Dat Pro Fac Ext Hostile Shots Fired 719 | . 101 19 129 126 22 89 . 2 . 34 10 187 Missed 273 | . 27 7 28 38 7 58 . 2 . 15 4 87 Damage Taken 5282 | . 958 105 925 1117 221 269 . . . 366 86 1235 Core 1692 | . 189 7 185 171 30 165 . . . 86 14 845 Absorbed by Shields 363 | . . . 199 69 . . . . . . . 95 Regen/Repaired (Parts) 186 | . . . . 89 . 49 . . . . 48 . Core Remaining (%) 47 | 100 . 21 . . 3 . . . . 64 . . Volleys Fired 281 | 8 64 17 88 73 13 3 . 2 . 13 . . Largest 2 | 2 2 2 2 2 2 1 . 1 . 1 . . Hottest 112 | 40 112 40 112 79 46 30 . 30 . 30 . . Shots Fired 510 | 16 120 27 169 134 26 3 . 2 . 13 . . Gun 411 | 16 113 27 108 121 26 . . . . . . . Cannon 69 | . 7 . 61 1 . . . . . . . . Launcher 30 | . . . . 12 . 3 . 2 . 13 . . Special . | . . . . . . . . . . . . . Kinetic 373 | 16 75 27 108 121 26 . . . . . . . Thermal 38 | . 38 . . . . . . . . . . . Explosive 30 | . . . . 12 . 3 . 2 . 13 . . Electromagnetic 69 | . 7 . 61 1 . . . . . . . . Robot Hit Streak 27 | 3 15 3 14 26 27 . . . . . . . Robot Miss Streak 4 | 3 4 4 3 3 3 1 . . . . . . Penetration Max . | . . . . . . . . . . . . . Secondary Targets 5 | . 2 1 2 . . . . . . . . . Max Gunslinging Chain 1 | . 1 1 1 . . . . . . . . . Shots Hit Robots 370 | 8 89 14 113 103 17 8 . . . . 6 12 Core Hits 194 | 3 33 7 55 68 6 16 . . . . 2 4 Critical Kills . | . . . . . . . . . . . . . Critical Parts Destroyed 1 | . . . . 1 . . . . . . . . Critical Strikes 7 | . . . 1 2 . 1 . . . . 1 2 Destroy 2 | . . . . 2 . . . . . . . . Corrupt 1 | . . . 1 . . . . . . . . . Sever 4 | . . . . . . 1 . . . . 1 2 Melee Attacks 92 | . 1 . 8 5 . 41 . 1 . 1 17 18 Impact . | . . . . . . . . . . . . . Slashing 92 | . 1 . 8 5 . 41 . 1 . 1 17 18 Piercing . | . . . . . . . . . . . . . Sneak Attacks 6 | . 1 . 2 . . 2 . . . . . 1 Combat Hostiles 1 | . . . . . . 1 . . . . . . Follow-up Attacks . | . . . . . . . . . . . . . Damage Inflicted 8505 | 89 1376 158 2088 3057 330 675 . . . . 238 494 Guns 4071 | 89 1040 158 988 1466 330 . . . . . . . Cannons 1081 | . 155 . 904 22 . . . . . . . . Explosions 2043 | . 124 . 77 1569 . 273 . . . . . . Melee 1310 | . 57 . 119 . . 402 . . . . 238 494 Ramming . | . . . . . . . . . . . . . Kinetic 3724 | 89 693 158 988 1466 330 . . . . . . . Thermal 599 | . 471 . 77 51 . . . . . . . . Explosive 1791 | . . . . 1518 . 273 . . . . . . Electromagnetic 1081 | . 155 . 904 22 . . . . . . . . Impact . | . . . . . . . . . . . . . Slashing 1310 | . 57 . 119 . . 402 . . . . 238 494 Piercing . | . . . . . . . . . . . . . Highest Corruption 3 | . 3 3 . . . 1 1 1 1 2 . . Average Corruption 2 | . 2 3 . . . 1 1 1 1 1 . . Corruption Purged . | . . . . . . . . . . . . . Corruption Blocked . | . . . . . . . . . . . . . Effects 21 | . 7 9 . . . . 1 1 . 3 . . Message Errors 4 | . 2 1 . . . . . 1 . . . . Matter Fused 7 | . 1 4 . . . . . . . 2 . . Heat Flow Errors 1 | . . . . . . . . . . 1 . . Energy Discharges 3 | . 1 2 . . . . . . . . . . Data Loss (minor) 1 | . . 1 . . . . . . . . . . Data Loss (major) 2 | . 1 1 . . . . . . . . . . Alerts 2 | . 1 . . . . . 1 . . . . . Weapon Failures 1 | . 1 . . . . . . . . . . . Overload Shots . | . . . . . . . . . . . . . Overflow Damage 183 | . 47 . 32 21 . 51 . . . . 15 17 Projectiles 26 | . 10 . 16 . . . . . . . . . Explosions 21 | . . . . 21 . . . . . . . . Melee 136 | . 37 . 16 . . 51 . . . . 15 17 Knockbacks . | . . . . . . . . . . . . . Impact . | . . . . . . . . . . . . . Kinetic . | . . . . . . . . . . . . . Secondary . | . . . . . . . . . . . . . Self-Inflicted Damage 141 | . 6 . 39 54 . . . . . 42 . . Shots 7 | . 1 . 1 3 . . . . . 2 . . Rammed . | . . . . . . . . . . . . . Targets Rammed . | . . . . . . . . . . . . . Kicked . | . . . . . . . . . . . . . Crushed . | . . . . . . . . . . . . . Highest Temperature 178 | 6 129 . 178 8 22 . . . . 102 . . Average Temperature 40 | 6 35 . 54 3 11 . . . . 46 . . Received Heat Transfer 1598 | . 552 . 210 365 54 42 . . . 69 . 306 Siege Activations . | . . . . . . . . . . . . . Robots Corrupted . | . . . . . . . . . . . . . Combat Hostiles . | . . . . . . . . . . . . . Parts Fried 11 | . 2 . 9 . . . . . . . . . Impact Corruptions . | . . . . . . . . . . . . . Robots Melted . | . . . . . . . . . . . . . Combat Hostiles . | . . . . . . . . . . . . . Parts Melted 3 | . 2 . 1 . . . . . . . . . Heat Transferred 1185 | . 985 . 150 50 . . . . . . . . Parts Sabotaged . | . . . . . . . . . . . . . Parts Stolen . | . . . . . . . . . . . . . Parts Stripped . | . . . . . . . . . . . . . Power Chain Reactions 4 | . 1 . 2 1 . . . . . . . . Alert | -11 -10 -10 -9 -9 -9 -7 -7 -7 -7 -6 -6 -6 ------- Run | Yrd Mat Min Mat Sto Rec Fac Low Low Dat Pro Fac Ext Peak Influence 698 | 10 223 66 549 698 212 576 . . . . 94 168 Initial 276 | . 6 52 23 62 212 276 . . . . 9 . Average 210 | 7 94 50 302 452 66 375 . . . . 47 39 Maximum Alert Level 2 | . 1 . 2 2 1 2 . . . . . . Low Security (%) 56 | 100 93 100 27 19 85 . . . . . 100 100 Level 1 22 | . 6 . 46 1 14 67 . . . . . . Level 2 21 | . . . 26 79 . 32 . . . . . . Level 3 . | . . . . . . . . . . . . . Level 4 . | . . . . . . . . . . . . . Level 5 . | . . . . . . . . . . . . . High Security . | . . . . . . . . . . . . . Max Security . | . . . . . . . . . . . . . Squads Dispatched 25 | . 3 . 2 10 . 7 . . . . 2 1 Investigation 12 | . 2 . . 4 . 5 . . . . 1 . Extermination 2 | . . . . . . 1 . . . . 1 . Reinforcement 6 | . 1 . 2 1 . 1 . . . . . 1 Assault 3 | . . . . 3 . . . . . . . . Garrison 2 | . . . . 2 . . . . . . . . Intercept . | . . . . . . . . . . . . . Searches Triggered 1 | . . . . . . 1 . . . . . . Construction Impeded 1 | . . . . . . 1 . . . . . . Haulers Reinforced . | . . . . . . . . . . . . . Active Scanning Responses . | . . . . . . . . . . . . . Cargo Convoy Interrupts . | . . . . . . . . . . . . . Stealth | -11 -10 -10 -9 -9 -9 -7 -7 -7 -7 -6 -6 -6 --------- Run | Yrd Mat Min Mat Sto Rec Fac Low Low Dat Pro Fac Ext Distress Signals 13 | . 3 . 3 4 . 2 . . . . . 1 Communications Jammed . | . . . . . . . . . . . . . Distress Signals . | . . . . . . . . . . . . . Times Spotted 220 | . 31 5 45 46 4 39 1 1 . 15 4 29 Peak Tracking Total 12 | . 5 3 5 11 2 6 1 1 . 11 2 12 Tactical Retreats 24 | . 2 . 4 . . 9 . 1 . 2 . 6 Traps | -11 -10 -10 -9 -9 -9 -7 -7 -7 -7 -6 -6 -6 ------- Run | Yrd Mat Min Mat Sto Rec Fac Low Low Dat Pro Fac Ext Traps Triggered 15 | . 2 . . 2 . 1 . . . . . 10 Indirectly . | . . . . . . . . . . . . . Trap Hack Attempts . | . . . . . . . . . . . . . Triggered . | . . . . . . . . . . . . . Disarmed . | . . . . . . . . . . . . . Reprogrammed . | . . . . . . . . . . . . . Reused . | . . . . . . . . . . . . . Traps Extracted . | . . . . . . . . . . . . . Installed . | . . . . . . . . . . . . . Triggered 3 | . . . . . . . 1 . . 2 . . Machines | -11 -10 -10 -9 -9 -9 -7 -7 -7 -7 -6 -6 -6 ---------- Run | Yrd Mat Min Mat Sto Rec Fac Low Low Dat Pro Fac Ext Machines Disabled 7 | . . . 2 4 1 . . . . . . . Max in Single Turn 1 | . . . 1 1 . . . . . . . . Garrison Access 2 | . . . . 1 . . . . . . 1 . Machines Repaired . | . . . . . . . . . . . . . Machines Dismantled . | . . . . . . . . . . . . . Machines Sabotaged . | . . . . . . . . . . . . . Overloaded Fab Kills . | . . . . . . . . . . . . . Hacking | -11 -10 -10 -9 -9 -9 -7 -7 -7 -7 -6 -6 -6 --------- Run | Yrd Mat Min Mat Sto Rec Fac Low Low Dat Pro Fac Ext Machines Accessed 65 | . 8 . 8 11 11 16 . . 4 1 5 1 Terminals 39 | . 7 . 6 7 6 10 . . . 1 1 1 Fabricators 3 | . . . . . . 2 . . . . 1 . Repair Stations 3 | . . . . 1 . 1 . . . . 1 . Recycling Units 10 | . 1 . . 2 5 1 . . . . 1 . Scanalyzers 3 | . . . 2 . . 1 . . . . . . Garrison Access 3 | . . . . 1 . 1 . . . . 1 . Total Hacks 194 | . 19 . 29 27 26 48 . . 30 1 12 2 Successful 125 | . 12 . 19 8 18 30 . . 30 1 7 . Failed 69 | . 7 . 10 19 8 18 . . . . 5 2 Catastrophic 5 | . . . . 3 . 1 . . . . 1 . Database Lockouts . | . . . . . . . . . . . . . Manual 82 | . 13 . 13 18 16 16 . . . 1 3 2 Terminals 111 | . 17 . 18 22 16 32 . . . 1 3 2 Fabricators 7 | . . . . . . 6 . . . . 1 . Repair Stations 9 | . . . . 2 . 5 . . . . 2 . Recycling Units 18 | . 2 . . 2 10 1 . . . . 3 . Scanalyzers 13 | . . . 11 . . 2 . . . . . . Garrison Access 6 | . . . . 1 . 2 . . . . 3 . Terminal Hacks 69 | . 7 . 6 3 7 15 . . 30 1 . . Record 13 | . . . . . . 1 . . 11 1 . . Part Schematic 17 | . 1 . . . 2 3 . . 11 . . . Robot Schematic 5 | . . . . . . . . . 5 . . . Robot Analysis 4 | . 2 . . . 2 . . . . . . . Prototype ID Bank 5 | . 1 . 1 . . . . . 3 . . . Open Door 1 | . . . . 1 . . . . . . . . Level Access Points 1 | . . . . . . 1 . . . . . . Branch Access Points 1 | . . . . . . 1 . . . . . . Emergency Access Points 3 | . 1 . 1 . . 1 . . . . . . Terminal Index 2 | . 1 . . . . 1 . . . . . . Repair Station Index 1 | . . . . . . 1 . . . . . . Alert Level 4 | . 1 . 1 1 1 . . . . . . . Unreport Threat 4 | . . . 2 1 1 . . . . . . . Dispatch Records 1 | . . . . . . 1 . . . . . . Security Status 1 | . . . . . . 1 . . . . . . Recall Extermination 1 | . . . . . . 1 . . . . . . Hauler Manifests 1 | . . . 1 . . . . . . . . . Registered Components 1 | . . . . . . 1 . . . . . . Zone Layout 3 | . . . . . 1 2 . . . . . . Fabricator Hacks 5 | . . . . . . 5 . . . . . . Network Status 1 | . . . . . . 1 . . . . . . Load Schematic 2 | . . . . . . 2 . . . . . . Build 2 | . . . . . . 2 . . . . . . Repair Station Hacks 8 | . . . . 2 . 4 . . . . 2 . Scan Component 4 | . . . . 1 . 2 . . . . 1 . Repair 4 | . . . . 1 . 2 . . . . 1 . Recycling Unit Hacks 8 | . . . . . 4 1 . . . . 3 . Process 1 | . . . . . . . . . . . 1 . Report Inventory 6 | . . . . . 4 1 . . . . 1 . Retrieve Matter 1 | . . . . . . . . . . . 1 . Scanalyzer 10 | . . . 9 . . 1 . . . . . . Insert Component 5 | . . . 4 . . 1 . . . . . . Analyze 5 | . . . 5 . . . . . . . . . Garrison Access Hacks 2 | . . . . 1 . . . . . . 1 . Seal Access 2 | . . . . 1 . . . . . . 1 . Unauthorized Hacks 23 | . 5 . 4 2 7 4 . . . . 1 . Terminals 15 | . 4 . 4 . 2 4 . . . . 1 . Assimilate 2 | . . . 1 . . 1 . . . . . . Botnet 11 | . 3 . 3 . 2 2 . . . . 1 . Operators 2 | . 1 . . . . 1 . . . . . . Fabricators . | . . . . . . . . . . . . . Repair Stations . | . . . . . . . . . . . . . Recycling Units 8 | . 1 . . 2 5 . . . . . . . Tunnel 8 | . 1 . . 2 5 . . . . . . . Scanalyzers . | . . . . . . . . . . . . . Garrison Access . | . . . . . . . . . . . . . Data Cores Recovered . | . . . . . . . . . . . . . Used . | . . . . . . . . . . . . . Hacking Detections 42 | . 4 . 7 7 5 15 . . . . 3 1 Full Trace Events 11 | . 1 . 1 3 . 5 . . . . 1 . Feedback Events 1 | . . . . . . 1 . . . . . . Corruption 1 | . . . . . . 1 . . . . . . Feedback Blocked . | . . . . . . . . . . . . . Robot Schematics Acquired 5 | . . . . . . . . . 5 . . . Robots Built . | . . . . . . . . . . . . . Authchips . | . . . . . . . . . . . . . Time . | . . . . . . . . . . . . . Total Robot Build Rating . | . . . . . . . . . . . . . Part Schematics Acquired 21 | . 1 . 4 . 2 3 . . 11 . . . Parts Built 3 | . . . . . . 3 . . . . . . Authchips . | . . . . . . . . . . . . . Time 235 | . . . . . . 235 . . . . . . Total Part Build Rating 12 | . . . . . . 12 . . . . . . Parts Repaired 4 | . . . . 1 . 2 . . . . 1 . Time 134 | . . . . 32 . 64 . . . . 38 . Parts Recycled . | . . . . . . . . . . . . . Recycled Matter 3 | . . . . . . . . . . . 3 . Retrieved Matter 3 | . . . . . . . . . . . 3 . Retrieved Components . | . . . . . . . . . . . . . Parts Scanalyzed 4 | . . . 4 . . . . . . . . . Part Schematics Acquired 4 | . . . 4 . . . . . . . . . Parts Damaged . | . . . . . . . . . . . . . Bothacking | -11 -10 -10 -9 -9 -9 -7 -7 -7 -7 -6 -6 -6 ------------ Run | Yrd Mat Min Mat Sto Rec Fac Low Low Dat Pro Fac Ext Used RIF Installer . | . . . . . . . . . . . . . Robots Hacked . | . . . . . . . . . . . . . Non-combat . | . . . . . . . . . . . . . Combat . | . . . . . . . . . . . . . Robot Hacks Applied . | . . . . . . . . . . . . . Relay Couplers Released . | . . . . . . . . . . . . . Fabnet Peak Effective % . | . . . . . . . . . . . . . Robots Rewired 7 | . . . . . 5 . . . . . . 2 Allies Hacked . | . . . . . . . . . . . . . Hacks Repelled . | . . . . . . . . . . . . . Allies | -11 -10 -10 -9 -9 -9 -7 -7 -7 -7 -6 -6 -6 -------- Run | Yrd Mat Min Mat Sto Rec Fac Low Low Dat Pro Fac Ext Total Allies 14 | . . 3 1 2 5 1 . . . . . 2 Largest Group 5 | . . 3 1 3 5 1 1 1 1 1 . 1 Highest-Rated Group 73 | . . 40 10 72 73 10 10 9 9 9 . 39 Highest-Rated Ally 39 | . . 16 10 31 21 10 10 9 9 9 . 39 Total Orders 15 | . . . 4 1 . 4 . 2 . 4 . . STAY 8 | . . . 2 1 . 2 . 1 . 2 . . FOLLOW 7 | . . . 2 . . 2 . 1 . 2 . . Ally Attacks 40 | . . 16 . 4 13 . . . . . . 7 Total Damage 482 | . . 139 . 83 143 . . . . . . 117 Kills 6 | . . 3 . 1 1 . . . . . . 1 Allies Corrupted . | . . . . . . . . . . . . . Allies Melted . | . . . . . . . . . . . . . Intel | -11 -10 -10 -9 -9 -9 -7 -7 -7 -7 -6 -6 -6 ------- Run | Yrd Mat Min Mat Sto Rec Fac Low Low Dat Pro Fac Ext Robot Analysis Total 4 | . 2 . . . 2 . . . . . . . Derelict Logs Recovered 5 | . . 3 . . . . . 1 . 1 . . Drone Launches . | . . . . . . . . . . . . . Drone Recoveries . | . . . . . . . . . . . . . Exploration | -11 -10 -10 -9 -9 -9 -7 -7 -7 -7 -6 -6 -6 ------------- Run | Yrd Mat Min Mat Sto Rec Fac Low Low Dat Pro Fac Ext Turns Passed 9368 | 64 1164 553 2020 1243 1351 1053 131 142 32 282 410 923 Spaces Moved 9123 | 30 737 429 1076 589 837 2126 343 395 87 611 602 1261 Core 23 | . . . . . . . . . . . . 23 Treads . | . . . . . . . . . . . . . Legs 136 | 30 106 . . . . . . . . . . . Wheels 3577 | . 631 429 1076 589 837 15 . . . . . . Hover . | . . . . . . . . . . . . . Flight 5387 | . . . . . . 2111 343 395 87 611 602 1238 Fastest Speed 32 | 120 95 110 110 135 150 32 32 32 32 32 32 32 Average Speed 73 | 120 108 110 135 146 150 34 32 32 32 32 33 32 Slowest Speed 170 | 120 125 110 170 165 150 150 32 32 32 34 34 50 Overloaded Moves . | . . . . . . . . . . . . . Propulsion Burnouts . | . . . . . . . . . . . . . Robots Hopped 22 | . . . . . . 12 . . . 5 . 5 Cave-ins Triggered . | . . . . . . . . . . . . . Exploration Rate (%) 66 | 4 94 88 87 87 99 53 56 56 71 68 14 82 Regions Visited 12 Branch Regions 8 Pre-discovered Areas 10 | . 1 1 . 2 5 . . . 1 . . . Known Exits Taken 3 | . . . 1 . . 1 . . . 1 . . Unknown Exits Taken 9 | 1 1 1 . 1 1 . 1 1 1 . 1 . Scrap Searched 4 | . . 1 . . . . . 2 . 1 . . Spaces Dug 141 | . . . 3 2 . 29 . 22 . 72 9 4 Terrain Destroyed 311 | . 1 . 10 95 . 56 . 22 . 114 9 4 Melee 49 | . . . 3 2 . 29 . 1 . 1 9 4 Projectile . | . . . . . . . . . . . . . AOE 262 | . 1 . 7 93 . 27 . 21 . 113 . . Terrain Rammed . | . . . . . . . . . . . . . Walls Destroyed . | . . . . . . . . . . . . . Machines Disabled . | . . . . . . . . . . . . . Actions | -11 -10 -10 -9 -9 -9 -7 -7 -7 -7 -6 -6 -6 --------- Run | Yrd Mat Min Mat Sto Rec Fac Low Low Dat Pro Fac Ext Total 11126 | 42 978 487 1445 819 908 2376 363 406 90 676 793 1743 Wait 1250 | . 128 30 229 112 36 171 20 8 2 44 163 307 Move 9072 | 29 736 428 1075 588 836 2103 342 394 86 602 601 1252 Hop 17 | . . . . . . 10 . . . 3 . 4 Pick Up 50 | 3 16 5 6 9 3 2 . 1 . 1 1 3 Fast Attach 48 | . 6 . 7 9 . 14 . . 1 5 4 2 Attach 32 | 1 4 1 6 3 1 10 1 . . 1 3 1 Detach 6 | . 1 . . 1 . 3 . . . . 1 . Swap 37 | . 8 2 15 10 . . . . . . 2 . Drop 69 | 1 14 4 11 9 2 19 . . 1 6 1 1 Fire 281 | 8 64 17 88 73 13 3 . 2 . 13 . . Melee 92 | . 1 . 8 5 . 41 . 1 . 1 17 18 Ram . | . . . . . . . . . . . . . Kick . | . . . . . . . . . . . . . Crush . | . . . . . . . . . . . . . Escape Stasis 141 | . . . . . . . . . . . . 141 Rewire 31 | . . . . . 17 . . . . . . 14 Trap . | . . . . . . . . . . . . . Miscellaneous . | . . . . . . . . . . . . . Route ------- -11/Scrapyard -10/Materials (discovered 6 exits: *Mat x3 / [*Min x2] / [*Sub]) -10/Mines (discovered 2 exits: *Mat x2) -9/Materials (discovered 4 exits: [*Mat x2] / [*Min] / *Sto) -9/Storage (discovered 2 exits: [*Mat] / *Rec) -9/Recycling -7/Factory (discovered 6 exits: *Fac x4 / *Low x2) -7/Lower Caves -7/Lower Caves (discovered 2 exits: *Fac / *Dat) -7/Data Miner -6/Proximity Caves -6/Factory -6/Extension History --------- Turn | Location | Event 26 | -11/Scrapyard | Discovered new exit (range 3) 65 | -11/Scrapyard | Entered Materials 277 | -10/Materials | Lost 3 parts (1p2w) 318 | -10/Materials | Build established: Mutant 475 | -10/Materials | Core integrity fell below 50% 532 | -10/Materials | Discovered new exit (range 16) 764 | -10/Materials | Discovered new exit (range 11) 977 | -10/Materials | Discovered new exit (range 10) 1067 | -10/Materials | Discovered new exit (range 12) 1132 | -10/Materials | Discovered new exit (range 7) 1147 | -10/Materials | Discovered new exit (range 6) 1200 | -10/Materials | Derelicts attacked the area 1229 | -10/Materials | Entered Mines 1232 | -10/Mines | Discovered new exit (range 11) 1256 | -10/Mines | Learned location of Zion (-6) 1319 | -10/Mines | Assisted by bots powering up and referring to "LRC-V3" 1371 | -10/Mines | Learned Materials trap positions 1547 | -10/Mines | Received a Rocket Launcher from a helpful Derelict 1744 | -10/Mines | Found a damaged Exp. Sensor Array with a note attached 1750 | -10/Mines | Found Prototype Device 1769 | -10/Mines | Discovered new exit (range 9) 1782 | -10/Mines | Entered Materials 1782 | -9/Materials | Evolved 2 slots: Utility x2 1783 | -9/Materials | Identified exit to Storage 1784 | -9/Materials | Loaded intel: 16 trap records 2332 | -9/Materials | Identified Exp. Sensor Array 2387 | -9/Materials | Discovered new exit (range 7) 2468 | -9/Materials | Build established: Scavenger-Mutant 3170 | -9/Materials | Discovered new exit (range 16) 3350 | -9/Materials | Build established: Mutant 3462 | -9/Materials | Discovered new exit (range 16) 3802 | -9/Materials | Entered Storage 3802 | -9/Storage | Accompanied by 1 ally 4008 | -9/Storage | Met a pair of Derelict thieves 4038 | -9/Storage | Garrison activated, responded to threat 4079 | -9/Storage | Core integrity fell below 50% 4105 | -9/Storage | Lost 3 allies 4106 | -9/Storage | Destroyed 9 combat bots 4155 | -9/Storage | Destroyed 7 combat bots 4212 | -9/Storage | Garrison activated, responded to threat 4357 | -9/Storage | Core integrity fell below 20% 4700 | -9/Storage | Discovered new exit (range 8) 4945 | -9/Storage | Repaired Arm. Wheel 5002 | -9/Storage | First assault squad dispatched 5041 | -9/Storage | Used back door to open Recycling access 5041 | -9/Storage | Discovered new exit (range 4) 5045 | -9/Storage | Entered Recycling 5761 | -9/Recycling | Discovered new exit (range 6) 5897 | -9/Recycling | Lost 3 allies 6396 | -9/Recycling | Entered Factory 6396 | -7/Factory | Evolved 4 slots: Utility x4 6610 | -7/Factory | Fabricated VTOL Module? 6699 | -7/Factory | Build established: Scavenger-Mutant 6752 | -7/Factory | Fabricated Exp. Sensor Array? 6981 | -7/Factory | Identified exit to Lower Caves 6981 | -7/Factory | Identified exit to Factory 7060 | -7/Factory | Build established: Hacker-Sprinter 7196 | -7/Factory | Search patrols dispatched 7244 | -7/Factory | Repaired ECM Suite 7283 | -7/Factory | Repaired Katana 7361 | -7/Factory | Build established: Sprinter 7449 | -7/Factory | Entered Lower Caves 7449 | -7/Lower Caves | Accompanied by 1 ally 7554 | -7/Lower Caves | Discovered new exit (range 12) 7580 | -7/Lower Caves | Entered another Lower Caves area 7580 | -7/Lower Caves | Accompanied by 1 ally 7589 | -7/Lower Caves | Discovered exit to Factory (range 10) 7645 | -7/Lower Caves | Learned Factory interactive machine intel 7664 | -7/Lower Caves | Encountered a Warlord checkpoint 7717 | -7/Lower Caves | Discovered new exit (range 6) 7722 | -7/Lower Caves | Entered Data Miner 7722 | -7/Data Miner | Accompanied by 1 ally 7722 | -7/Data Miner | Discovered new exit (range 6) 7728 | -7/Data Miner | Met Data Miner 7735 | -7/Data Miner | Learned location of Section 7 (-2) 7735 | -7/Data Miner | Acquired the access code to Warlord's prototype stash 7742 | -7/Data Miner | Received God Mode back door access code from Data Miner 7754 | -7/Data Miner | Entered Proximity Caves 7754 | -6/Proximity Caves | Accompanied by 1 ally 7910 | -6/Proximity Caves | Unaware initiated a cargo recovery operation 7920 | -6/Proximity Caves | Acquired the password to a Derelict Tinkerer's latest research 7926 | -6/Proximity Caves | Found Prototype Special Weapon 7926 | -6/Proximity Caves | Identified Molecular Deconstructor 7980 | -6/Proximity Caves | Spotted B-75 Beast 8030 | -6/Proximity Caves | Lost 3 parts (1n1u1w) 8036 | -6/Proximity Caves | Entered Factory 8036 | -6/Factory | Evolved 2 slots: Propulsion x1, Utility x1 8037 | -6/Factory | Loaded intel: 53 interactive machine locations 8109 | -6/Factory | Lost 3 parts (1n2u) 8351 | -6/Factory | Repaired Katana 8444 | -6/Factory | Discovered new exit (range 8) 8446 | -6/Factory | Entered Extension 8879 | -6/Extension | Build established: Hacker-Sprinter 9096 | -6/Extension | Spotted B-75 Beast 9221 | -6/Extension | Disrupted transfer network 9238 | -6/Extension | Spotted B-75 Beast 9340 | -6/Extension | Core integrity fell below 50% 9355 | -6/Extension | Core integrity fell below 20% 9369 | -6/Extension | Destroyed by S-27 Virus with Autogun Last Messages --------------- 09348_ Imp. Flight Unit destroyed. 09354_ G-50 Soldier springs to life. 09358_ Attempting to rewire RT-5RI(h). 09358_ RT-5RI(h) rewired. 09359_ HV Slug penetrates G-50 Soldier. 09359_ G-50 Soldier suffers critical hit (Destroy). 09359_ Destroyed Unknown Energy Gun. 09359_ Attempting to rewire GB-EVG(b). 09361_ HV Slug penetrates G-50 Soldier. 09361_ GB-EVG(b) destroyed. 09362_ Attempting to rewire 40-1HE(g). 09365_ HV Slug penetrates G-50 Soldier. 09365_ G-50 Soldier suffers critical hit (Destroy). 09365_ G-50 Soldier destroyed. 09365_ HV Slug penetrates Wall. 09365_ Attempting to rewire 40-1HE(g). 09366_ S-27 Virus destroyed. 09367_ Attempting to rewire 40-1HE(g). 09367_ RT-5RI(h) destroyed. 09368_ Acquired Hrd. Light Armor Plating. Map ----- +----------------------------------------------------+ | | | | | | | | | | | | | | | | | | | | | ????????????????????????????????????????????????? | | ????????????????????????????????????????????????? | | ????????########????????????????????????????????? | | ????????# / #############################????? | | ????????# + #????? | | ????????# == ######################## #????? | | ????????# = / #?????# #????? | | ????????# = #### #?????# #????? | | ????????# #??# #?????# ####????? | | ????????##+##+##??# #?????# #???????? | | ?????????# #???# ######## ##????# #???????? | | ?????????# #???# #??????#% ;#????# #???????? | | ?????????# #???# #?######+! ###### ####????? | | ?????????# #???# #?# ]=s%;[ #????? | | ########## ##### #?# /%*=g# ######### #????? | | #?#!%@=%[#####?????????#????? | | #####################?# *gg= #??????????????????? | | ??????????????????????# s #??????????????????? | | ??????????????????????# #??????????????????? | | ??????????????????????########??????????????????? | | ????????????????????????????????????????????????? | | ????????????????????????????????????????????????? | | ????????????????????????????????????????????????? | | ????????????????????????????????????????????????? | | ????????????????????????????????????????????????? | | ????????????????????????????????????????????????? | | ????????????????????????????????????????????????? | | ????????????????????????????????????????????????? | | ????????????????????????????????????????????????? | | ????????????????????????????????????????????????? | | ????????????????????????????????????????????????? | | ????????????????????????????????????????????????? | | ????????????????????????????????????????????????? | | ????????????????????????????????????????????????? | | ????????????????????????????????????????????????? | | ????????????????????????????????????????????????? | | ????????????????????????????????????????????????? | | ????????????????????????????????????????????????? | | ????????????????????????????????????????????????? | | ????????????????????????????????????????????????? | +----------------------------------------------------+ Best States ------------- Heat Dissipation 50 Energy Generation 18 Energy Capacity 310 Matter Stores 300 Matter Capacity 300 Sight Range 22 Robot Scan Range 20 Terrain Scan Density 10 ECM Strength 2 Additional Mass Support 9 Armor Coverage 225 Melee Speed Boost 20 Evasion (%) 63 Melee Accuracy 12 Recoil Reduction 1 Offensive Hacking 20 Defensive Hacking 10 Authchip Count 1 Item Schematics ----------------- ECM Suite | -10/Materials | Hacked Exp. Sensor Array | -9/Materials | Scanalyzed Mni. Grenade Launcher | -9/Materials | Scanalyzed Weight Redist. System | -9/Materials | Scanalyzed Hacking Suite | -9/Materials | Scanalyzed Plasma Cutter | -9/Recycling | Hacked VTOL Module | -9/Recycling | Hacked System Shield | -7/Factory | Hacked Power Sword | -7/Factory | Hacked Cloaking Device | -7/Factory | Hacked Combat Drone Bay | -7/Data Miner | Free Lgt. Regenerative Plating | -7/Data Miner | Free Cld. Cesium-ion Thruster | -7/Data Miner | Free Exp. Utility Shielding | -7/Data Miner | Free Imp. Lightning Gun | -7/Data Miner | Free Antigrav System | -7/Data Miner | Free Imp. Coolant Injector | -7/Data Miner | Free Imp. Plasma Cutter | -7/Data Miner | Free Nuclear Pulse Thruster | -7/Data Miner | Free Hyp. Coil Gun | -7/Data Miner | Free Hvy. Disruptor Cannon | -7/Data Miner | Free Robot Schematics ------------------ L-41 Fighter | -7/Data Miner | Free S-27 Virus | -7/Data Miner | Free C-17 Slicer | -7/Data Miner | Free O-24 Administrator | -7/Data Miner | Free R-10 Processor | -7/Data Miner | Free Fabricated ------------ VTOL Module | x2 | -7/Factory Exp. Sensor Array | x1 | -7/Factory Alien Tech Used ----------------- None Achievements -------------- None Challenges ------------ None Game ------ Seed ConstructThermicCharge Manual? 0 Play Time 02:09:13 Cumulative 86.0 hours Start 2024.05.08 @ 17:52:51 End 2024.05.08 @ 22:36:24 Sessions 3 Manual Loads 0 Difficulty Rogue Special Mode None Game No. 59 Rogue 59 Adventurer 0 Explorer 0 Win Type - Total 1 Types 1/0/0/0/0/0/0/0/0 Lore% 53 Gallery% 44 Achievement% 43 Wizard Run 0 Options --------- Layout 0 ASCII 0 Keyboard 0 Movement Mouse Keybinds 0 Fullscreen 1 Font 18/SmallcapsGlow Map View 76x50 Zoom Use 0% Tactical HUD 1 Map Filters NONE Filters NONE Steam 1 RUN: 7026b8c4-acf3-47b4-b4b6-7f178ca5010b